bitfinex/quotes_SOLUSD_20220212
["timestamp","ask_amount","ask_price","bid_price","bid_amount"]
[1644659311541,23.8414,95.628,95.569,1.46435818]
[1644659311748,23.8414,95.628,95.569,3.84802609]
[1644659311941,23.8414,95.628,95.569,2.38366791]
[1644659312144,23.8414,95.628,95.57,2.38366791]
[1644659312341,23.8414,95.628,95.57,7.61366791]
[1644659312542,23.8414,95.628,95.571,46.16710222]
[1644659312744,23.8414,95.628,95.571,48.55077013]
[1644659312944,23.8414,95.628,95.572,2.38366791]
[1644659314143,23.8414,95.628,95.573,30.0676]
[1644659314545,23.8414,95.628,95.574,2.38366791]
[1644659317062,5.23,95.647,95.574,2.38366791]
[1644659317263,24.336,95.646,95.574,2.38366791]
[1644659318764,5.229,95.645,95.556,2.38366791]
[1644659318966,5.229,95.645,95.546,1.46435818]
[1644659319168,15.14,95.64,95.546,1.46435818]
[1644659319366,5.23,95.639,95.542,1.46435818]
[1644659319567,5.23,95.639,95.543,36.104966]
[1644659319766,5.23,95.639,95.544,23.5455]
[1644659320169,5.23,95.639,95.544,25.92916791]
[1644659320367,5.23,95.639,95.545,2.38366791]
[1644659320767,15.7023,95.63,95.545,2.38366791]
[1644659320969,5.23,95.629,95.545,2.38366791]
[1644659321166,23.7629,95.628,95.545,2.38366791]
[1644659321369,5.23,95.627,95.545,2.38366791]
[1644659322566,23.7629,95.628,95.545,2.38366791]
[1644659323573,23.7629,95.628,95.546,44.9195951]
[1644659323770,5.23,95.627,95.546,44.9195951]
[1644659323975,23.7629,95.628,95.554,1.46435818]
[1644659324174,23.7629,95.628,95.547,2.38366791]
[1644659324175,23.7629,95.628,95.557,1.46435818]
[1644659324374,23.7629,95.628,95.558,5.23]
[1644659324571,23.7629,95.628,95.558,3.84802609]
[1644659324572,5.23,95.627,95.558,3.84802609]
[1644659324774,5.23,95.627,95.559,2.38366791]
[1644659325175,23.7629,95.628,95.56,5.23]
[1644659325574,23.7629,95.628,95.561,26.97876791]
[1644659325976,23.7629,95.628,95.562,7.61366791]
[1644659326375,23.7629,95.628,95.563,2.38366791]
[1644659326977,5.23,95.627,95.563,2.38366791]
[1644659329181,5.23,95.627,95.561,24.5951]
[1644659330684,23.7629,95.628,95.562,5.23]
[1644659332183,5.23,95.627,95.562,5.23]
[1644659332583,23.7629,95.628,95.562,5.23]
[1644659332782,5.23,95.627,95.562,5.23]
[1644659333983,5.23,95.627,95.555,1.46435818]
[1644659334384,5.23,95.627,95.556,1.46435818]
[1644659334585,5.23,95.627,95.557,1.46435818]
[1644659334783,5.23,95.627,95.556,1.46435818]
[1644659336085,5.23,95.627,95.555,1.46435818]
[1644659336288,5.23,95.627,95.557,1.46435818]
[1644659336684,5.23,95.627,95.556,1.46435818]
[1644659336890,23.7629,95.628,95.557,1.46435818]
[1644659337084,5.23,95.626,95.556,1.46435818]
[1644659337285,5.23,95.627,95.556,1.46435818]
[1644659337485,23.7629,95.628,95.557,5.23]
[1644659338087,5.23,95.627,95.555,1.46435818]
[1644659338390,5.23,95.627,95.556,1.46435818]
[1644659338687,5.23,95.627,95.554,1.46435818]
[1644659339389,5.23,95.627,95.555,1.46435818]
[1644659340288,5.23,95.627,95.556,1.46435818]
[1644659340487,5.23,95.627,95.557,1.46435818]
[1644659341790,5.23,95.627,95.558,2.38366791]
[1644659344291,5.23,95.627,95.559,1.46435818]
[1644659344689,5.23,95.627,95.56,2.38366791]
[1644659344888,5.23,95.627,95.561,1.46435818]
[1644659345094,5.23,95.627,95.563,1.46435818]
[1644659345290,5.23,95.627,95.564,1.46435818]
[1644659345489,5.23,95.627,95.564,3.84802609]
[1644659345689,5.23,95.627,95.565,2.38366791]
[1644659350393,23.7629,95.628,95.565,2.38366791]
[1644659350592,5.23,95.627,95.565,2.38366791]
[1644659351495,5.23,95.627,95.563,1.46435818]
[1644659352095,23.7629,95.628,95.567,1.46435818]
[1644659353398,23.7629,95.628,95.565,1.46435818]
[1644659354907,5.23,95.627,95.565,1.46435818]
[1644659355705,5.23,95.627,95.566,1.46435818]
[1644659356920,23.7629,95.628,95.566,1.46435818]
[1644659357222,23.7629,95.628,95.567,1.46435818]
[1644659357524,23.7629,95.628,95.566,1.46435818]
[1644659357721,5.23,95.627,95.566,1.46435818]
[1644659358521,5.23,95.627,95.567,1.46435818]
[1644659358723,23.7629,95.628,95.567,1.46435818]
[1644659359021,5.23,95.627,95.566,1.46435818]
[1644659359421,5.23,95.627,95.567,1.46435818]
[1644659359623,23.7629,95.628,95.567,1.46435818]
[1644659361525,5.23,95.627,95.567,1.46435818]
[1644659361928,5.23,95.627,95.549,5.23]
[1644659361929,5.23,95.627,95.566,1.46435818]
[1644659362128,23.7629,95.628,95.566,1.46435818]
[1644659362328,23.7629,95.628,95.567,1.46435818]
[1644659363128,23.7629,95.628,95.566,1.46435818]
[1644659363330,5.23,95.627,95.567,1.46435818]
[1644659363628,23.7629,95.628,95.567,1.46435818]
[1644659363828,23.7629,95.628,95.566,1.46435818]
[1644659364031,5.23,95.627,95.567,1.46435818]
[1644659364229,5.23,95.627,95.569,1.46435818]
[1644659364428,5.23,95.627,95.547,24.3458]
[1644659364429,5.23,95.627,95.57,1.46435818]
[1644659364632,5.23,95.627,95.567,1.46435818]
[1644659364831,5.23,95.627,95.548,3.8803755]
[1644659364832,5.23,95.627,95.563,1.46435818]
[1644659365035,5.23,95.627,95.558,1.46435818]
[1644659365431,5.23,95.627,95.56,1.46435818]
[1644659365632,5.23,95.627,95.559,1.46435818]
[1644659366030,5.23,95.627,95.558,1.46435818]
[1644659367534,5.23,95.627,95.557,1.46435818]
[1644659367731,5.23,95.627,95.558,1.46435818]
[1644659368930,5.23,95.627,95.548,36.71371374]
[1644659368931,5.23,95.627,95.557,1.46435818]
[1644659369131,5.23,95.627,95.556,1.46435818]
[1644659369531,5.23,95.627,95.557,1.46435818]
[1644659369933,5.23,95.627,95.556,1.46435818]
[1644659370135,5.23,95.627,95.557,1.46435818]
[1644659371636,5.23,95.627,95.556,1.46435818]
[1644659372341,5.23,95.627,95.557,1.46435818]
[1644659372542,5.23,95.627,95.556,1.46435818]
[1644659373341,5.23,95.627,95.555,1.46435818]
[1644659374441,5.23,95.627,95.554,1.46435818]
[1644659375245,5.23,95.627,95.555,1.46435818]
[1644659375943,5.23,95.627,95.554,1.46435818]
[1644659379450,5.23,95.627,95.553,1.46435818]
[1644659379846,5.23,95.627,95.554,1.46435818]
[1644659380248,5.23,95.627,95.553,1.46435818]
[1644659380447,5.23,95.627,95.554,1.46435818]
[1644659380749,23.7629,95.628,95.555,2.38366791]
[1644659380949,23.7629,95.628,95.565,1.46435818]
[1644659381348,23.7629,95.628,95.566,5.23]
[1644659381547,23.7629,95.628,95.567,23.5935]
[1644659381751,5.23,95.641,95.568,5.23]
[1644659381947,22.6813,95.64,95.569,1.46435818]
[1644659382147,22.6813,95.64,95.571,1.46435818]
[1644659382348,22.6813,95.64,95.572,40.81878621]
[1644659382550,22.6813,95.64,95.572,46.04778621]
[1644659382751,22.6813,95.64,95.572,47.51214439]
[1644659383549,22.6813,95.64,95.572,6.69335818]
[1644659383950,22.6813,95.64,95.572,5.229]
[1644659384150,5.229,95.639,95.571,1.46435818]
[1644659384351,22.6813,95.64,95.572,5.229]
[1644659384953,22.6813,95.64,95.572,6.69335818]
[1644659385153,5.229,95.639,95.573,1.46435818]
[1644659385658,5.229,95.639,95.572,1.46435818]
[1644659385858,22.6813,95.64,95.571,1.46435818]
[1644659386156,22.6813,95.64,95.572,1.46435818]
[1644659386557,22.6813,95.64,95.573,5.229]
[1644659387360,22.6813,95.64,95.573,6.69335818]
[1644659387560,5.229,95.639,95.573,5.229]
[1644659387961,5.229,95.639,95.567,25.05785818]
[1644659387962,5.229,95.639,95.569,1.46435818]
[1644659388163,22.6813,95.64,95.569,1.46435818]
[1644659388364,22.6813,95.64,95.572,1.46435818]
[1644659388762,22.6813,95.64,95.573,2.38366791]
[1644659389764,5.229,95.649,95.573,2.38366791]
[1644659389966,0.52520572,95.664,95.575,1.46435818]
[1644659390165,5.229,95.661,95.58,1.46435818]
[1644659390367,5.229,95.661,95.582,1.46435818]
[1644659390582,5.229,95.663,95.581,1.46435818]
[1644659390785,5.229,95.66,95.581,2.38366791]
[1644659391088,23.9328,95.659,95.582,28.9751]
[1644659391286,0.52520572,95.664,95.583,1.46435818]
[1644659391485,0.52520572,95.664,95.587,1.46435818]
[1644659391682,0.52520572,95.664,95.588,5.228]
[1644659391883,5.228,95.663,95.588,5.228]
[1644659392083,10.45582449,95.662,95.588,5.228]
[1644659392283,5.228,95.661,95.588,5.228]
[1644659392685,24.8101,95.66,95.588,5.228]
[1644659392882,5.228,95.659,95.588,5.228]
[1644659393982,24.8101,95.66,95.582,23.7471]
[1644659395385,24.8101,95.66,95.583,2.38366791]
[1644659395583,24.8101,95.66,95.583,9.07602609]
[1644659395783,24.8101,95.66,95.585,1.46435818]
[1644659396085,5.228,95.659,95.582,23.7471]
[1644659396688,5.228,95.659,95.583,2.38366791]
[1644659396886,0.52520572,95.664,95.587,1.46435818]
[1644659397086,0.52520572,95.664,95.597,1.46435818]
[1644659397285,0.52520572,95.664,95.609,43.88020792]
[1644659397487,0.52520572,95.664,95.61,1.46435818]
[1644659397685,0.52520572,95.664,95.61,15.14]
[1644659397887,0.52520572,95.664,95.61,17.52366791]
[1644659398085,0.52520572,95.664,95.611,26.33486791]
[1644659398485,0.52520572,95.664,95.612,7.61166791]
[1644659398685,0.52520572,95.664,95.612,31.77822609]
[1644659398889,0.52520572,95.664,95.613,2.38366791]
[1644659399088,0.52520572,95.664,95.614,5.228]
[1644659399488,0.52520572,95.664,95.615,2.38366791]
[1644659400688,0.52520572,95.664,95.6,2.38366791]
[1644659400894,5.228,95.663,95.6,2.38366791]
[1644659401087,5.228,95.663,95.581,23.0501]
[1644659401286,5.228,95.663,95.582,5.228]
[1644659401589,5.228,95.663,95.583,47.50582083]
[1644659402990,0.52520572,95.664,95.583,47.50582083]
[1644659403789,5.228,95.663,95.583,47.50582083]
[1644659409798,5.228,95.663,95.581,23.0501]
[1644659409799,15.6978,95.66,95.581,23.0501]
[1644659410005,5.229,95.659,95.574,1.46435818]
[1644659410204,2.13764782,95.659,95.571,1.46435818]
[1644659410403,7.36664782,95.658,95.568,1.46435818]
[1644659410602,7.36664782,95.658,95.567,1.46435818]
[1644659410802,27.00344782,95.657,95.569,45.55513212]
[1644659411003,30.8396,95.65,95.563,5.229]
[1644659411207,5.229,95.649,95.55,1.46435818]
[1644659411404,5.229,95.649,95.549,1.46435818]
[1644659411601,5.229,95.649,95.548,1.46435818]
[1644659412008,5.229,95.649,95.549,1.46435818]
[1644659412202,7.36664782,95.649,95.548,1.46435818]
[1644659412603,7.36664782,95.649,95.546,1.46435818]
[1644659412904,11.47436139,95.629,95.545,22.5764]
[1644659413105,29.677,95.628,95.545,22.5764]
[1644659413505,29.677,95.628,95.54,1.46435818]
[1644659413705,25.82154782,95.627,95.539,1.46435818]
[1644659413904,25.82154782,95.627,95.517,23.2561]
[1644659413905,15.7053,95.61,95.527,1.46435818]
[1644659414105,15.7053,95.61,95.517,23.2561]
[1644659414106,29.3541,95.609,95.522,1.46435818]
[1644659414311,31.49174782,95.609,95.517,23.2561]
[1644659414707,24.1231,95.609,95.518,5.232]
[1644659415910,24.1231,95.609,95.517,23.2561]
[1644659415911,15.7097,95.59,95.517,23.2561]
[1644659416108,28.6281,95.589,95.517,23.2561]
[1644659416812,1.67306333,95.588,95.517,23.2561]
[1644659417008,5.232,95.587,95.517,23.2561]
[1644659421519,1.67306333,95.588,95.518,5.232]
[1644659424125,5.232,95.587,95.518,5.232]
[1644659425343,5.232,95.587,95.517,23.2561]
[1644659427345,15.711,95.58,95.517,23.2561]
[1644659427647,5.232,95.579,95.517,23.2561]
[1644659428852,5.232,95.587,95.517,23.2561]
[1644659430549,5.232,95.588,95.518,5.232]
[1644659430749,23.3961,95.589,95.518,5.232]
[1644659431152,11.92894684,95.588,95.518,5.232]
[1644659432254,23.3961,95.589,95.518,5.232]
[1644659433251,12.74838627,95.588,95.518,5.232]
[1644659435454,5.232,95.587,95.517,23.2561]
[1644659437062,12.74838627,95.588,95.518,6.69635818]
[1644659437760,12.74838627,95.588,95.518,5.232]
[1644659437961,12.74838627,95.588,95.518,6.69635818]
[1644659438261,12.74838627,95.588,95.518,5.232]
[1644659439264,12.74838627,95.588,95.528,1.46435818]
[1644659439664,12.74838627,95.588,95.527,1.46435818]
[1644659440062,12.74838627,95.588,95.525,1.46435818]
[1644659440562,12.74838627,95.588,95.526,1.46435818]
[1644659440962,12.74838627,95.588,95.527,1.46435818]
[1644659441165,5.232,95.587,95.528,1.46435818]
[1644659441366,5.232,95.587,95.525,1.46435818]
[1644659441665,5.232,95.587,95.521,1.46435818]
[1644659442066,2.14343409,95.586,95.526,1.46435818]
[1644659442267,5.232,95.585,95.524,1.46435818]
[1644659442466,5.232,95.585,95.525,1.46435818]
[1644659442665,2.14343409,95.584,95.523,1.46435818]
[1644659442864,5.232,95.587,95.524,1.46435818]
[1644659443064,5.232,95.583,95.524,1.46435818]
[1644659443267,5.232,95.587,95.522,1.46435818]
[1644659443466,5.232,95.582,95.522,1.46435818]
[1644659443666,5.232,95.587,95.522,1.46435818]
[1644659443866,15.7114,95.58,95.52,1.46435818]
[1644659444166,5.232,95.579,95.517,24.72045818]
[1644659444769,5.232,95.579,95.517,23.2561]
[1644659450773,5.232,95.579,95.517,66.14237948]
[1644659451176,5.232,95.579,95.517,23.2561]
[1644659453581,21.1145,95.579,95.517,23.2561]
[1644659456684,2.14343409,95.578,95.517,23.2561]
[1644659456886,5.232,95.577,95.517,23.2561]
[1644659457186,15.7127,95.57,95.503,1.46435818]
[1644659457387,0.02656497,95.517,95.497,1.46435818]
[1644659457589,0.02656497,95.517,95.49,24.183]
[1644659458712,0.02656497,95.517,95.491,5.235]
[1644659460016,0.02656497,95.517,95.49,24.183]
[1644659462413,5.235,95.569,95.517,0.00154808]
[1644659464617,30.8528,95.57,95.517,0.00154808]
[1644659466122,5.232,95.569,95.517,0.00154808]
[1644659469823,2.14343409,95.568,95.517,0.00154808]
[1644659470023,5.232,95.567,95.517,0.00154808]
[1644659470227,5.232,95.568,95.517,0.00154808]
[1644659470426,5.232,95.569,95.517,0.00154808]
[1644659476750,15.7148,95.56,95.517,0.00154808]
[1644659476931,28.5726,95.559,95.517,0.00154808]
[1644659477131,30.71603409,95.559,95.517,0.00154808]
[1644659477330,2.14343409,95.558,95.517,0.00154808]
[1644659477531,5.232,95.557,95.517,0.00154808]
[1644659477932,2.14343409,95.556,95.517,0.00154808]
[1644659478336,15.716,95.55,95.517,0.00154808]
[1644659478535,5.232,95.549,95.517,0.00154808]
[1644659478733,7.37543409,95.549,95.517,0.00154808]
[1644659478933,25.50023409,95.548,95.517,0.00154808]
[1644659479134,5.232,95.547,95.517,0.00154808]
[1644659479337,7.37543409,95.547,95.517,0.00154808]
[1644659479535,5.232,95.547,95.517,0.00154808]
[1644659479735,6.71001047,95.563,95.517,0.00154808]
[1644659479939,1.47801047,95.576,95.517,0.00154808]
[1644659480134,5.232,95.579,95.518,7.61566791]
[1644659480337,543.82980785,95.567,95.519,40.48001946]
[1644659480542,543.82980785,95.567,95.52,53.6528]
[1644659480835,395.13960785,95.567,95.52,86.58505149]
[1644659481043,395.13960785,95.567,95.521,18.05545029]
[1644659481235,24.6479,95.623,95.521,18.05545029]
[1644659481236,1.47801047,95.614,95.522,5.232]
[1644659481435,1.47801047,95.615,95.522,32.61346791]
[1644659481836,1.47801047,95.618,95.523,3.84802609]
[1644659482035,1.47801047,95.618,95.524,1.46435818]
[1644659482242,5.231,95.617,95.525,5.231]
[1644659482437,1.47801047,95.62,95.53,15.14]
[1644659482636,1.47801047,95.62,95.531,5.231]
[1644659482837,1.47801047,95.625,95.531,5.231]
[1644659483040,1.47801047,95.625,95.532,2.38366791]
[1644659483237,5.231,95.624,95.532,2.38366791]
[1644659483438,1.47801047,95.63,95.532,2.38366791]
[1644659483937,5.231,95.639,95.535,1.46435818]
[1644659484139,1.47801047,95.641,95.54,1.46435818]
[1644659484140,5.23,95.64,95.54,1.46435818]
[1644659484356,47.9925,95.645,95.55,15.14]
[1644659484557,47.9925,95.645,95.551,29.899]
[1644659484859,411.70019195,95.653,95.552,37.4496015]
[1644659485060,410.22218148,95.653,95.553,5.229]
[1644659485462,410.22218148,95.653,95.553,7.61266791]
[1644659485662,410.22218148,95.653,95.554,2.38366791]
[1644659485859,5.229,95.652,95.555,5.229]
[1644659486164,5.229,95.674,95.56,30.8344]
[1644659486359,5.229,95.659,95.561,28.0347]
[1644659486559,5.229,95.663,95.561,30.41836791]
[1644659486759,5.229,95.663,95.562,20.4391182]
[1644659486959,9.26368141,95.666,95.563,5.229]
[1644659487163,5.229,95.663,95.564,23.4679]
[1644659487363,1.47801047,95.684,95.57,15.6927]
[1644659487560,1.47801047,95.689,95.58,15.14]
[1644659487761,1.47801047,95.69,95.58,15.14]
[1644659487961,5.228,95.663,95.581,18.05545029]
[1644659488163,5.228,95.663,95.581,20.4391182]
[1644659488361,5.228,95.663,95.582,44.80779411]
[1644659488560,5.228,95.663,95.582,65.24691231]
[1644659488764,5.228,95.663,95.583,2.38366791]
[1644659488962,5.228,95.663,95.583,20.4391182]
[1644659489162,5.228,95.663,95.584,18.05545029]
[1644659489363,5.228,95.663,95.59,6.70471057]
[1644659489564,5.228,95.691,95.59,21.84471057]
[1644659489764,5.228,95.699,95.6,15.6877]
[1644659489962,5.228,95.712,95.6,30.8277]
[1644659490164,5.228,95.704,95.601,25.6671182]
[1644659490361,9.34891837,95.714,95.601,43.45936969]
[1644659490563,9.34891837,95.714,95.602,35.84770178]
[1644659490862,5.228,95.713,95.61,15.6858]
[1644659491064,5.228,95.713,95.611,45.79675055]
[1644659491266,5.228,95.713,95.611,66.23586875]
[1644659491465,5.228,95.713,95.612,20.4391182]
[1644659491666,1.47801047,95.735,95.613,5.228]
[1644659491865,5.72e-06,95.664,95.614,66.0]
[1644659492066,5.72e-06,95.664,95.62,3.79]
[1644659492264,5.72e-06,95.664,95.63,15.14]
[1644659492465,5.72e-06,95.664,95.631,28.3961]
[1644659492668,5.72e-06,95.664,95.631,5.227]
[1644659492863,5.72e-06,95.664,95.621,22.7079]
[1644659493664,5.72e-06,95.664,95.622,23.8694]
[1644659495968,5.72e-06,95.664,95.621,22.7079]
[1644659496169,5.227,95.663,95.621,22.7079]
[1644659496371,5.72e-06,95.664,95.622,45.62306984]
[1644659496568,5.72e-06,95.664,95.621,22.7079]
[1644659496771,5.72e-06,95.664,95.622,2.38366791]
[1644659496970,5.227,95.663,95.622,2.38366791]
[1644659497670,5.72e-06,95.664,95.622,2.38366791]
[1644659497870,5.72e-06,95.664,95.63,15.14]
[1644659498069,5.72e-06,95.664,95.631,23.3133]
[1644659498269,5.72e-06,95.664,95.631,43.4892194]
[1644659498469,5.72e-06,95.664,95.632,2.38366791]
[1644659498671,5.72e-06,95.664,95.632,20.1759194]
[1644659499072,5.72e-06,95.664,95.633,2.38366791]
[1644659499267,5.72e-06,95.664,95.633,7.61066791]
[1644659499668,5.72e-06,95.664,95.634,2.38366791]
[1644659501270,5.72e-06,95.664,95.635,5.227]
[1644659501472,5.72e-06,95.664,95.64,15.14]
[1644659502071,5.72e-06,95.664,95.641,2.38366791]
[1644659503974,5.72e-06,95.664,95.631,28.5403]
[1644659505576,5.72e-06,95.664,95.631,23.3133]
[1644659506782,5.72e-06,95.664,95.631,25.69696791]
[1644659507379,5.72e-06,95.664,95.632,5.227]
[1644659508680,5.72e-06,95.664,95.633,2.38366791]
[1644659509081,5.227,95.663,95.632,5.227]
[1644659509482,5.72e-06,95.664,95.632,5.227]
[1644659509881,5.227,95.663,95.632,5.227]
[1644659510082,5.72e-06,95.664,95.632,5.227]
[1644659510281,5.227,95.663,95.578,47.5527]
[1644659510684,5.227,95.663,95.579,2.38366791]
[1644659511284,5.227,95.663,95.58,39.54230082]
[1644659511686,5.227,95.663,95.581,2.38366791]
[1644659512887,5.72e-06,95.664,95.582,5.228]
[1644659513487,5.72e-06,95.664,95.583,2.38366791]
[1644659515689,5.72e-06,95.664,95.583,3.84802609]
[1644659516087,5.72e-06,95.664,95.584,3.84802609]
[1644659516288,5.72e-06,95.664,95.587,1.46435818]
[1644659516488,5.72e-06,95.664,95.58,70.37300082]
[1644659516489,5.72e-06,95.664,95.585,3.84802609]
[1644659516690,5.72e-06,95.664,95.588,3.84802609]
[1644659516887,5.72e-06,95.664,95.588,2.38366791]
[1644659517090,5.72e-06,95.664,95.589,2.38366791]
[1644659517388,7.49110048,95.663,95.589,2.38366791]
[1644659517589,5.72e-06,95.664,95.59,24.7278]
[1644659517788,5.72e-06,95.664,95.59,29.9558]
[1644659518008,5.72e-06,95.664,95.591,3.84802609]
[1644659518188,5.72e-06,95.664,95.592,6.69235818]
[1644659518390,5.72e-06,95.664,95.592,7.61166791]
[1644659518588,5.72e-06,95.664,95.592,5.228]
[1644659518789,5.72e-06,95.664,95.593,2.38366791]
[1644659519189,5.228,95.663,95.593,2.38366791]
[1644659519591,5.72e-06,95.664,95.593,2.38366791]
[1644659520989,5.228,95.663,95.593,2.38366791]
[1644659523588,5.72e-06,95.664,95.593,2.38366791]
[1644659526415,5.72e-06,95.664,95.593,18.68818467]
[1644659526817,5.72e-06,95.664,95.594,2.38366791]
[1644659527016,5.72e-06,95.664,95.594,7.61166791]
[1644659527217,5.72e-06,95.664,95.594,23.91618467]
[1644659527419,5.72e-06,95.664,95.596,47.48761481]
[1644659527616,5.72e-06,95.664,95.597,5.228]
[1644659527817,5.72e-06,95.664,95.597,7.61166791]
[1644659528018,5.72e-06,95.664,95.598,2.38366791]
[1644659528221,5.72e-06,95.664,95.599,5.228]
[1644659528420,5.72e-06,95.664,95.599,21.53251676]
[1644659528621,5.72e-06,95.664,95.6,2.38366791]
[1644659529020,5.72e-06,95.664,95.601,23.9505]
[1644659529423,5.72e-06,95.664,95.602,2.38366791]
[1644659529619,5.72e-06,95.664,95.603,5.228]
[1644659530023,5.72e-06,95.664,95.604,2.38366791]
[1644659531624,5.72e-06,95.664,95.605,5.228]
[1644659532024,5.72e-06,95.664,95.606,2.38366791]
[1644659532425,5.72e-06,95.664,95.607,5.228]
[1644659532628,5.72e-06,95.664,95.606,2.38366791]
[1644659532824,5.72e-06,95.664,95.608,2.38366791]
[1644659533325,5.72e-06,95.664,95.609,5.228]
[1644659533726,5.72e-06,95.664,95.61,2.38366791]
[1644659536130,5.72e-06,95.664,95.611,5.228]
[1644659536329,5.72e-06,95.664,95.612,23.9415]
[1644659536530,5.72e-06,95.664,95.613,5.228]
[1644659536731,5.72e-06,95.664,95.613,7.61166791]
[1644659536929,5.72e-06,95.664,95.614,2.38366791]
[1644659537229,5.72e-06,95.664,95.615,5.227]
[1644659537630,5.72e-06,95.664,95.616,2.38366791]
[1644659537829,5.72e-06,95.664,95.616,18.68818467]
[1644659538033,5.72e-06,95.664,95.617,5.227]
[1644659538229,5.72e-06,95.664,95.617,7.61066791]
[1644659538430,5.72e-06,95.664,95.618,2.38366791]
[1644659538630,5.72e-06,95.664,95.619,5.227]
[1644659538829,5.72e-06,95.664,95.62,15.6846]
[1644659539030,5.72e-06,95.664,95.621,5.227]
[1644659539233,5.72e-06,95.664,95.621,7.61066791]
[1644659539431,5.72e-06,95.664,95.622,2.38366791]
[1644659539629,5.72e-06,95.664,95.623,5.227]
[1644659539934,5.72e-06,95.664,95.624,2.38366791]
[1644659540130,5.72e-06,95.664,95.63,30.823]
[1644659540535,5.72e-06,95.664,95.631,25.21518467]
[1644659540732,5.72e-06,95.664,95.631,42.86299172]
[1644659540932,5.72e-06,95.664,95.632,19.98818467]
[1644659541136,5.72e-06,95.664,95.633,110.127]
[1644659541337,5.72e-06,95.664,95.65,15.678]
[1644659541532,5.72e-06,95.664,95.657,1.46435818]
[1644659541932,5.72e-06,95.664,95.651,28.0177]
[1644659542133,5.72e-06,95.664,95.652,22.99]
[1644659542334,5.72e-06,95.664,95.653,5.226]
[1644659542532,5.72e-06,95.664,95.652,22.99]
[1644659542732,5.72e-06,95.664,95.653,5.226]
[1644659542932,5.72e-06,95.664,95.652,22.99]
[1644659543533,5.72e-06,95.664,95.653,5.226]
[1644659543732,4.72600572,95.755,95.654,38.5902119]
[1644659544433,6.20401619,95.755,95.654,38.5902119]
[1644659544634,6.20401619,95.755,95.655,2.38366791]
[1644659544834,4.72600572,95.755,95.655,2.38366791]
[1644659545236,6.20401619,95.755,95.655,2.38366791]
[1644659546235,4.72600572,95.755,95.655,2.38366791]
[1644659546835,15.6824,95.75,95.655,2.38366791]
[1644659547038,5.224,95.749,95.655,2.38366791]
[1644659553241,5.224,95.749,95.654,38.5902119]
[1644659553445,5.224,95.749,95.655,2.38366791]
[1644659554045,2.16473565,95.748,95.656,17.60451676]
[1644659554242,5.224,95.747,95.656,17.60451676]
[1644659554444,23.7022,95.746,95.656,17.60451676]
[1644659554845,5.224,95.745,95.656,17.60451676]
[1644659555045,7.38873565,95.745,95.656,17.60451676]
[1644659555445,5.224,95.745,95.656,17.60451676]
[1644659557249,5.224,95.745,95.657,5.224]
[1644659557450,5.224,95.745,95.656,17.60451676]
[1644659557654,5.224,95.745,95.657,2.38366791]
[1644659557850,6.70201047,95.745,95.657,2.38366791]
[1644659558753,2.16473565,95.744,95.657,2.38366791]
[1644659558950,6.70201047,95.743,95.657,2.38366791]
[1644659559369,2.16473565,95.742,95.657,2.38366791]
[1644659559569,5.224,95.741,95.657,2.38366791]
[1644659559769,1.47801047,95.744,95.657,2.38366791]
[1644659559971,5.224,95.743,95.658,5.224]
[1644659560268,7.38873565,95.743,95.659,2.38366791]
[1644659560469,8.86674612,95.743,95.659,2.38366791]
[1644659560669,8.86674612,95.743,95.656,17.60451676]
[1644659560670,15.6841,95.74,95.656,17.60451676]
[1644659560869,1.47801047,95.736,95.656,17.60451676]
[1644659561070,5.224,95.735,95.654,38.5902119]
[1644659561272,24.5993,95.734,95.654,38.5902119]
[1644659561471,28.24204612,95.734,95.654,38.5902119]
[1644659561671,7.38873565,95.733,95.654,38.5902119]
[1644659562072,2.16473565,95.732,95.654,38.5902119]
[1644659562274,5.224,95.731,95.654,38.5902119]
[1644659562677,2.16473565,95.73,95.654,38.5902119]
[1644659563074,5.224,95.729,95.654,38.5902119]
[1644659563976,5.224,95.733,95.654,38.5902119]
[1644659564373,5.224,95.733,95.655,2.38366791]
[1644659564574,2.16473565,95.732,95.655,2.38366791]
[1644659564774,5.224,95.731,95.655,2.38366791]